bitfinex/quotes_ETHUSD_20250906
["timestamp","ask_amount","ask_price","bid_price","bid_amount"]
[1757123257438,113.12171537,4313.2,4313.1,45.191587]
[1757123257642,113.12171537,4313.2,4313.1,75.191587]
[1757123258180,113.12171537,4313.2,4313.1,78.10653765]
[1757123258558,113.12171537,4313.2,4313.1,75.191587]
[1757123258788,113.12171537,4313.2,4313.1,59.019587]
[1757123260394,109.97985485,4313.2,4313.1,59.019587]
[1757123260776,109.97985485,4313.2,4313.1,61.92595387]
[1757123261373,110.21205485,4313.2,4313.1,55.90710344]
[1757123261690,109.97985485,4313.2,4313.1,56.83573657]
[1757123261850,111.20985485,4313.2,4313.1,57.12773657]
[1757123262251,111.20985485,4313.2,4313.1,57.56223657]
[1757123262576,111.20985485,4313.2,4313.1,27.56223657]
[1757123262754,111.20985485,4313.2,4313.1,57.56223657]
[1757123263394,112.43985485,4313.2,4313.1,57.56223657]
[1757123263615,112.43985485,4313.2,4313.1,27.56223657]
[1757123263822,112.43985485,4313.2,4313.1,57.56223657]
[1757123264618,112.43985485,4313.2,4313.1,27.56223657]
[1757123264825,112.43985485,4313.2,4313.1,57.56223657]
[1757123265489,112.43985485,4313.2,4313.1,76.06573657]
[1757123266495,112.43985485,4313.2,4313.1,76.50023657]
[1757123266692,112.43985485,4313.2,4313.1,79.40660344]
[1757123267526,112.43985485,4313.2,4313.1,73.87460344]
[1757123267715,112.43985485,4313.2,4313.1,67.49060344]
[1757123269398,112.43985485,4313.2,4313.1,62.17060344]
[1757123269603,112.43985485,4313.2,4313.1,60.46860344]
[1757123269896,112.43985485,4313.2,4313.1,55.83410344]
[1757123271337,112.43985485,4313.2,4313.1,55.54210344]
[1757123273405,112.43985485,4313.2,4313.1,55.84815387]
[1757123273622,112.43985485,4313.2,4313.1,52.941787]
[1757123273824,112.67205485,4313.2,4313.1,51.75906531]
[1757123274026,114.24135485,4313.2,4313.1,52.55106531]
[1757123274206,114.24135485,4313.2,4313.1,49.64018112]
[1757123274540,114.24135485,4313.2,4313.1,45.80518112]
[1757123274889,114.24135485,4313.2,4313.1,49.64018112]
[1757123275114,114.24135485,4313.2,4313.1,49.96723657]
[1757123275450,114.24135485,4313.2,4313.1,68.90523657]
[1757123275992,114.24135485,4313.2,4313.1,63.63772829]
[1757123276190,114.24135485,4313.2,4313.1,33.9778507]
[1757123276615,114.24135485,4313.2,4313.1,31.89772829]
[1757123277131,114.24135485,4313.2,4313.1,21.67872829]
[1757123277293,114.24135485,4313.2,4313.1,25.51372829]
[1757123279333,114.24135485,4313.2,4313.1,20.19372829]
[1757123279927,114.24135485,4313.2,4313.1,20.42522829]
[1757123280134,114.24135485,4313.2,4313.1,20.19372829]
[1757123280833,113.87903065,4313.2,4313.1,20.19372829]
[1757123281192,113.87903065,4313.2,4313.1,18.49172829]
[1757123283943,113.87903065,4313.2,4313.1,18.60692829]
[1757123285346,113.87903065,4313.2,4313.1,21.37292829]
[1757123285508,113.87903065,4313.2,4313.1,37.54592829]
[1757123286047,113.87903065,4313.2,4313.1,25.45092829]
[1757123286249,116.26213862,4313.2,4313.1,20.00972829]
[1757123286413,116.26213862,4313.2,4313.1,8.30472829]
[1757123286747,116.26213862,4313.2,4313.1,11.30472829]
[1757123287308,113.99423065,4313.2,4313.1,11.30472829]
[1757123288461,113.99423065,4313.2,4313.1,9.60272829]
[1757123289040,113.99423065,4313.2,4313.1,5.76772829]
[1757123289369,113.99423065,4313.2,4313.1,9.60272829]
[1757123295501,113.99423065,4313.2,4313.1,28.54572829]
[1757123298106,113.99423065,4313.2,4313.1,23.01172829]
[1757123300002,113.99423065,4313.2,4313.1,16.62572829]
[1757123301538,114.85126672,4313.2,4313.1,2.76772829]
[1757123302025,114.85126672,4313.2,4313.1,6.60372829]
[1757123305501,114.85126672,4313.2,4313.1,22.78272829]
[1757123309805,114.85126672,4313.2,4313.1,6.60372829]
[1757123313329,113.28196672,4313.2,4313.1,6.60372829]
[1757123314553,114.92276672,4313.2,4313.1,6.60372829]
[1757123315329,114.92276672,4313.2,4313.1,12.13772829]
[1757123315567,114.92276672,4313.2,4313.1,25.54972829]
[1757123315930,114.92276672,4313.2,4313.1,22.78272829]
[1757123317844,114.92276672,4313.2,4313.1,13.62872829]
[1757123318051,114.06573065,4313.2,4313.1,8.30672829]
[1757123318657,112.85903065,4313.2,4313.1,8.30672829]
[1757123318868,112.42493065,4313.2,4313.1,8.30672829]
[1757123319742,112.42493065,4313.2,4313.1,6.60372829]
[1757123325500,112.42493065,4313.2,4313.1,25.55072829]
[1757123326004,112.42493065,4313.2,4313.1,20.01672829]
[1757123326211,112.42493065,4313.2,4313.1,13.62972829]
[1757123327425,112.42493065,4313.2,4313.1,4.47072829]
[1757123327426,113.96151111,4313.2,4313.1,4.47072829]
[1757123327582,115.54931111,4313.2,4313.1,5.909]
[1757123334714,114.41171111,4313.2,4313.1,5.909]
[1757123335020,113.96151111,4313.2,4313.1,5.909]
[1757123335358,113.96151111,4313.2,4313.1,8.677]
[1757123335661,113.96151111,4313.2,4313.1,22.091]
[1757123335879,113.96151111,4313.2,4313.1,19.323]
[1757123336362,113.96151111,4313.2,4313.1,9.099]
[1757123336560,113.96151111,4313.2,4313.1,12.935]
[1757123336959,113.96151111,4313.2,4313.1,2.073]
[1757123337138,113.96151111,4313.2,4313.1,5.909]
[1757123337620,113.96151111,4313.2,4313.1,2.073]
[1757123337816,113.96151111,4313.2,4313.1,5.909]
[1757123338037,113.96151111,4313.2,4313.1,2.073]
[1757123338368,113.96151111,4313.2,4313.1,5.909]
[1757123339069,113.96151111,4313.2,4313.1,2.073]
[1757123339272,113.96151111,4313.2,4313.1,5.909]
[1757123340228,113.72931111,4313.2,4313.1,5.909]
[1757123340540,113.72931111,4313.2,4313.1,7.8691]
[1757123340541,112.19273065,4313.2,4313.1,7.8691]
[1757123340744,112.19273065,4313.2,4313.1,7.3969]
[1757123340946,112.19273065,4313.2,4313.1,6.6717]
[1757123343476,112.19273065,4313.2,4313.1,7.8691]
[1757123345510,112.19273065,4313.2,4313.1,24.0511]
[1757123345671,113.06038129,4313.2,4313.1,24.0511]
[1757123346010,113.06038129,4313.2,4313.1,10.2667382]
[1757123346177,113.06038129,4313.2,4313.1,11.5637382]
[1757123349668,113.06038129,4313.2,4313.1,9.8941382]
[1757123349883,113.06038129,4313.2,4313.1,9.6036382]
[1757123350306,113.06038129,4313.2,4313.1,9.9061382]
[1757123350913,113.06038129,4313.2,4313.1,9.6036382]
[1757123351382,113.06038129,4313.2,4313.1,5.7676382]
[1757123351585,113.30868129,4313.2,4313.1,9.6036382]
[1757123353421,113.06038129,4313.2,4313.1,9.6036382]
[1757123354401,113.06038129,4313.2,4313.1,11.4523382]
[1757123355401,113.06038129,4313.2,4313.1,30.4013382]
[1757123355816,113.06038129,4313.2,4313.1,24.8653382]
[1757123355817,112.69802685,4313.2,4313.1,24.8653382]
[1757123356127,112.69802685,4313.2,4313.1,11.4523382]
[1757123361002,112.94632685,4313.2,4313.1,9.6026382]
[1757123362032,112.69802685,4313.2,4313.1,9.6026382]
[1757123363531,112.69802685,4313.2,4313.1,10.9998382]
[1757123363738,112.69802685,4313.2,4313.1,10.3566382]
[1757123365631,112.69802685,4313.2,4313.1,17.3826382]
[1757123366396,112.94632685,4313.2,4313.1,16.6286382]
[1757123366733,112.94632685,4313.2,4313.1,9.6026382]
[1757123366941,114.70830563,4313.2,4313.1,9.6026382]
[1757123368313,112.94632685,4313.2,4313.1,9.6026382]
[1757123373452,112.94632685,4313.2,4313.1,6.6026382]
[1757123373745,112.69802685,4313.2,4313.1,6.9051382]
[1757123373963,112.69802685,4313.2,4313.1,6.6026382]
[1757123374616,112.94632685,4313.2,4313.1,6.6026382]
[1757123375429,112.94632685,4313.2,4313.1,25.5516382]
[1757123375750,112.69802685,4313.2,4313.1,25.5516382]
[1757123376936,112.69802685,4313.2,4313.1,25.8541382]
[1757123378657,112.69802685,4313.2,4313.1,8.6081382]
[1757123379163,112.58282685,4313.2,4313.1,7.9998382]
[1757123379467,112.58282685,4313.2,4313.1,8.4513382]
[1757123385331,112.58282685,4313.2,4313.1,13.9853382]
[1757123385524,112.58282685,4313.2,4313.1,27.3983382]
[1757123387287,112.47541499,4313.2,4313.1,22.7826382]
[1757123387482,112.47541499,4313.2,4313.1,20.0156382]
[1757123387988,112.22041499,4313.2,4313.1,20.0156382]
[1757123389378,112.22041499,4313.2,4313.1,8.3056382]
[1757123390484,112.47711499,4313.2,4313.1,8.3056382]
[1757123391453,112.47711499,4313.2,4313.1,6.6026382]
[1757123391673,114.74502296,4313.2,4313.1,6.6026382]
[1757123391855,112.47711499,4313.2,4313.1,6.6026382]
[1757123395384,112.47711499,4313.2,4313.1,23.8466382]
[1757123395590,112.47711499,4313.2,4313.1,25.5496382]
[1757123397306,112.22041499,4313.2,4313.1,25.5496382]
[1757123397506,112.22041499,4313.2,4313.1,20.0156382]
[1757123397704,112.22041499,4313.2,4313.1,13.9332382]
[1757123398281,112.22041499,4313.2,4313.1,14.3738382]
[1757123398704,112.22041499,4313.2,4313.1,15.4689382]
[1757123399059,112.22041499,4313.2,4313.1,10.1459382]
[1757123399307,112.22041499,4313.2,4313.1,11.16093202]
[1757123400217,112.22041499,4313.2,4313.1,10.1459382]
[1757123400711,112.22041499,4313.2,4313.1,9.7053382]
[1757123400872,112.22041499,4313.2,4313.1,10.1459382]
[1757123401270,112.22041499,4313.2,4313.1,8.4429382]
[1757123401700,112.22041499,4313.2,4313.1,11.76999365]
[1757123401885,112.22041499,4313.2,4313.1,12.65094261]
[1757123403806,112.22041499,4313.2,4313.1,13.76999806]
[1757123404116,112.22041499,4313.2,4313.1,14.19124849]
[1757123405012,112.22041499,4313.2,4313.1,44.19124849]
[1757123405386,112.22041499,4313.2,4313.1,61.43424849]
[1757123405583,112.22041499,4313.2,4313.1,63.13724849]
[1757123406513,112.22041499,4313.2,4313.1,67.33724849]
[1757123407574,112.22041499,4313.2,4313.1,55.41624849]
[1757123408482,112.22041499,4313.2,4313.1,51.21624849]
[1757123409288,112.22041499,4313.2,4313.1,44.19124849]
[1757123410839,113.08808352,4313.2,4313.1,44.19124849]
[1757123413836,113.08808352,4313.2,4313.1,46.62624849]
[1757123414015,113.08808352,4313.2,4313.1,44.19124849]
[1757123415326,113.08808352,4313.2,4313.1,46.95824849]
[1757123415539,113.08808352,4313.2,4313.1,63.13424849]
[1757123416409,113.08808352,4313.2,4313.1,33.13424849]
[1757123416612,113.08808352,4313.2,4313.1,62.82819806]
[1757123416820,113.08808352,4313.2,4313.1,62.50114261]
[1757123418246,113.08808352,4313.2,4313.1,40.98454261]
[1757123418412,113.08808352,4313.2,4313.1,41.44274261]
[1757123418742,113.08808352,4313.2,4313.1,45.27674261]
[1757123420257,113.08808352,4313.2,4313.1,43.57474261]
[1757123420955,113.08808352,4313.2,4313.1,44.20784849]
[1757123422536,113.08808352,4313.2,4313.1,13.90179806]
[1757123423060,113.08808352,4313.2,4313.1,41.71884261]
[1757123423356,113.08808352,4313.2,4313.1,43.52574261]
[1757123424270,113.08808352,4313.2,4313.1,38.17494261]
[1757123424438,113.08808352,4313.2,4313.1,42.00994261]
[1757123424633,113.08808352,4313.2,4313.1,42.46814261]
[1757123424833,113.08808352,4313.2,4313.1,43.52474261]
[1757123425337,113.31928352,4313.2,4313.1,47.25284261]
[1757123425522,113.31928352,4313.2,4313.1,60.66084261]
[1757123425727,113.08808352,4313.2,4313.1,60.66084261]
[1757123428368,113.08808352,4313.2,4313.1,60.95294261]
[1757123428946,113.08808352,4313.2,4313.1,60.66084261]
[1757123429282,113.08808352,4313.2,4313.1,48.74184261]
[1757123429483,113.08808352,4313.2,4313.1,44.03999806]
[1757123429784,113.08808352,4313.2,4313.1,45.55479806]
[1757123431249,113.08808352,4313.2,4313.1,43.85279806]
[1757123432559,113.08808352,4313.2,4313.1,48.05279806]
[1757123435584,113.08808352,4313.2,4313.1,66.99279806]
[1757123436080,112.72581755,4313.2,4313.1,66.99279806]
[1757123436384,112.72581755,4313.2,4313.1,64.22679806]
[1757123436688,112.72581755,4313.2,4313.1,61.46079806]
[1757123437991,112.72581755,4313.2,4313.1,50.06084849]
[1757123438149,112.72581755,4313.2,4313.1,48.35884849]
[1757123441707,108.52581755,4313.2,4313.1,21.03063449]
[1757123441912,109.75581755,4313.2,4313.1,21.03063449]
[1757123442057,109.75581755,4313.2,4313.1,51.03063449]
[1757123442261,108.18221281,4313.2,4313.1,51.03063449]
[1757123442463,106.60860807,4313.2,4313.1,51.03063449]
[1757123442770,104.28539177,4313.2,4313.1,51.03063449]
[1757123443671,105.51539177,4313.2,4313.1,51.03063449]
[1757123445078,106.74539177,4313.2,4313.1,51.03063449]
[1757123445503,106.74539177,4313.2,4313.1,71.35863449]
[1757123445698,106.74539177,4313.2,4313.1,69.96863449]
[1757123446680,107.97539177,4313.2,4313.1,70.20013449]
[1757123448085,107.97539177,4313.2,4313.1,51.26213449]
[1757123448285,109.20539177,4313.2,4313.1,51.26213449]
[1757123450328,110.43539177,4313.2,4313.1,51.26213449]
[1757123450884,110.43539177,4313.2,4313.1,21.26213449]
[1757123451302,110.43539177,4313.2,4313.1,51.26213449]
[1757123451920,111.66539177,4313.2,4313.1,51.26213449]
[1757123452312,109.30208488,4313.2,4313.1,51.44313008]
[1757123453215,110.53208488,4313.2,4313.1,51.44313008]
[1757123454608,111.76208488,4313.2,4313.1,51.44313008]
[1757123455440,111.76208488,4313.2,4313.1,70.38113008]
[1757123456143,112.86116302,4313.2,4313.1,70.38113008]
[1757123456347,112.86116302,4313.2,4313.1,58.46513008]
[1757123456661,112.86116302,4313.2,4313.1,51.44313008]
[1757123459338,109.89116302,4313.2,4313.1,54.41313008]
[1757123460031,105.51980878,4313.2,4313.1,54.41313008]
[1757123460752,106.74980878,4313.2,4313.1,54.41313008]
[1757123462736,107.97980878,4313.2,4313.1,51.44313008]
[1757123463675,108.22490878,4313.2,4313.1,33.98423008]
[1757123463980,112.02051675,4313.2,4312.8,0.60711554]
[1757123464317,2.69230797,4313.1,4312.9,4.318]
[1757123464599,2.26790797,4313.1,4313.0,1.7401]
[1757123464762,2.26790797,4313.1,4311.3,8.101]
[1757123465097,2.22821594,4313.0,4312.7,2.314]
[1757123465488,3.71501824,4313.0,4312.9,13.406]
[1757123465783,0.792,4312.9,4311.1,0.024]
[1757123465991,0.792,4312.9,4312.7,2.315]
[1757123466194,1.51329262,4312.8,4312.7,0.79578125]
[1757123466393,1.51329262,4312.8,4312.7,2.97078125]
[1757123467161,2.74329262,4312.8,4312.7,0.79578125]
[1757123467359,3.792,4312.7,4311.1,0.024]
[1757123467560,0.792,4312.5,4312.4,0.771]
[1757123467761,1.00671958,4312.5,4312.4,0.771]
[1757123468275,0.792,4312.5,4312.4,0.771]
[1757123468458,5.022,4312.5,4312.4,0.771]
[1757123470799,5.022,4312.5,4312.4,0.775]
[1757123470968,5.80890938,4312.5,4312.4,0.775]
[1757123472565,2.80890938,4312.5,4312.4,0.775]
[1757123472767,2.01690938,4312.5,4312.4,0.775]
[1757123473028,1.23,4312.5,4312.4,0.775]
[1757123473468,2.022,4312.5,4312.4,1.13753317]
[1757123474434,2.71696004,4312.5,4312.4,1.13753317]
[1757123475419,2.88906004,4312.5,4312.4,17.31953317]
[1757123476809,2.88906004,4312.5,4312.4,14.55153317]
[1757123477021,3.30096604,4312.5,4312.4,8.16353317]
[1757123477340,2.50896604,4312.5,4312.4,1.13753317]
[1757123478616,1.814006,4312.5,4312.4,1.13753317]
[1757123480227,1.641906,4312.5,4312.4,1.13753317]
[1757123482220,1.641906,4312.5,4312.4,1.87433317]
[1757123482417,1.23,4312.5,4312.4,2.95903317]
[1757123482614,1.23,4312.5,4312.4,1.13753317]
[1757123483718,1.23,4312.5,4312.4,2.95903317]
[1757123484933,1.23,4312.5,4312.4,2.52573317]
[1757123485123,1.23,4312.5,4312.4,2.5965]
[1757123485324,1.23,4312.5,4312.4,5.3645]
[1757123485526,1.23,4312.5,4312.4,18.7805]
[1757123486236,1.23,4312.5,4312.4,17.6958]
[1757123486420,1.23,4312.5,4312.4,16.959]
[1757123486621,1.476,4312.5,4312.4,16.959]
[1757123487070,1.23,4312.5,4312.4,16.959]
[1757123489037,1.23,4312.5,4312.4,2.478]
[1757123489861,1.23,4312.5,4312.4,4.90298829]
[1757123491174,1.23,4312.5,4312.4,3.19998829]
[1757123494225,1.23,4312.5,4312.4,1.37848829]
[1757123494427,1.23,4312.5,4312.4,2.11528829]
[1757123494868,1.23,4312.5,4312.4,3.19998829]
[1757123495228,1.23,4312.5,4312.4,3.56247235]
[1757123495437,1.23,4312.5,4312.4,19.74647235]
[1757123495703,1.195276,4312.5,4312.4,19.38398829]
[1757123496674,1.195276,4312.5,4312.4,19.74641625]
[1757123496886,1.195276,4312.5,4312.4,22.74641625]
[1757123497691,1.195276,4312.5,4312.4,8.26541625]
[1757123497892,1.195276,4312.5,4312.4,6.56241625]
[1757123498904,1.195276,4312.5,4312.4,5.47771625]
[1757123499689,1.195276,4312.5,4312.4,6.62641625]
[1757123501671,1.195276,4312.5,4312.4,4.74091625]
[1757123502763,1.195276,4312.5,4312.4,5.21341625]
[1757123503290,1.195276,4312.5,4312.4,4.74091625]
[1757123503494,1.4379036,4312.5,4312.4,0.96991625]
[1757123503798,1.4379036,4312.5,4312.4,4.84891625]
[1757123505403,1.4379036,4312.5,4312.4,19.32991625]
[1757123505614,1.4379036,4312.5,4312.4,21.03291625]
[1757123507108,1.4379036,4312.5,4312.4,4.84891625]
[1757123512480,1.195276,4312.5,4312.4,6.78571625]
[1757123513001,1.195276,4312.5,4312.4,4.84891625]
[1757123514476,1.195276,4312.5,4312.4,0.96991625]
[1757123514703,1.195276,4312.5,4312.4,4.84691625]
[1757123515372,1.195276,4312.5,4312.4,19.32791625]
[1757123515722,1.4379036,4312.5,4312.4,21.03091625]
[1757123518016,1.4379036,4312.5,4312.4,0.96991625]
[1757123518226,1.4379036,4312.5,4312.4,4.84491625]
[1757123521516,2.2299036,4312.5,4312.4,0.96991625]
[1757123521833,2.3604036,4312.5,4312.4,4.84391625]
[1757123522042,2.2299036,4312.5,4312.4,4.84391625]
[1757123522787,2.2309036,4312.5,4312.4,4.84391625]
[1757123525327,2.3614036,4312.5,4312.4,0.96991625]
[1757123525637,2.2309036,4312.5,4312.4,21.02691625]
[1757123529335,2.2309036,4312.5,4312.4,4.84291625]
[1757123535515,2.2309036,4312.5,4312.4,21.03091625]
[1757123538831,2.2309036,4312.5,4312.4,18.26191625]
[1757123538994,2.2309036,4312.5,4312.4,11.87191625]
[1757123539197,2.2309036,4312.5,4312.4,2.67391625]
[1757123539433,2.3178036,4312.5,4312.4,4.83891625]
[1757123540554,2.2309036,4312.5,4312.4,4.83891625]
[1757123545380,2.2309036,4312.5,4312.4,13.99791625]
[1757123545569,2.2309036,4312.5,4312.4,21.02691625]
[1757123549477,2.2309036,4312.5,4312.4,18.25791625]
[1757123549840,2.2309036,4312.5,4312.4,4.83891625]
[1757123550986,5.2309036,4312.5,4312.4,4.83891625]
[1757123552139,2.2309036,4312.5,4312.4,4.83891625]
[1757123555285,2.92602466,4312.5,4312.4,4.83891625]
[1757123555489,2.92602466,4312.5,4312.4,21.02891625]
[1757123555657,2.92602466,4312.5,4312.4,21.32791625]
[1757123555860,2.92602466,4312.5,4312.4,22.95751625]
[1757123556688,2.2309036,4312.5,4312.4,22.95751625]
[1757123557879,2.2309036,4312.5,4312.4,20.18851625]
[1757123558077,2.2309036,4312.5,4312.4,13.79751625]
[1757123560862,2.2309036,4312.5,4312.4,6.76751625]
[1757123561062,1.988276,4312.5,4312.4,6.76751625]
[1757123563487,1.196276,4312.5,4312.4,6.76751625]
[1757123565377,1.196276,4312.5,4312.4,15.92751625]
[1757123565596,1.196276,4312.5,4312.4,22.95651625]
[1757123566089,1.196276,4312.5,4312.4,13.79651625]
[1757123566275,1.196276,4312.5,4312.4,8.47151625]
[1757123566667,1.196276,4312.5,4312.4,6.76751625]
[1757123575618,1.196276,4312.5,4312.4,20.18651625]
[1757123575821,1.196276,4312.5,4312.4,13.79651625]
[1757123578097,1.196276,4312.5,4312.4,2.46441625]
[1757123578424,1.196276,4312.5,4312.4,6.78731625]
[1757123579216,1.196276,4312.5,4312.4,2.92931625]
[1757123579418,1.196276,4312.5,4312.4,6.78731625]
[1757123579646,1.196276,4312.5,4312.4,0.96991625]
[1757123579813,2.2310036,4312.5,4312.4,4.82791625]
[1757123580739,2.2310036,4312.5,4312.4,6.68881625]
[1757123581242,2.2310036,4312.5,4312.4,4.82791625]
[1757123583846,2.2310036,4312.5,4312.4,5.29281625]
[1757123584699,2.2310036,4312.5,4312.4,1.43481625]
[1757123584953,2.2310036,4312.5,4312.4,5.29181625]
[1757123585115,2.2310036,4312.5,4312.4,1.43481625]
[1757123585312,2.2310036,4312.5,4312.4,5.29181625]
[1757123585539,2.2310036,4312.5,4312.4,21.47981625]
[1757123587825,2.2310036,4312.5,4312.4,1.43481625]
[1757123588003,2.2310036,4312.5,4312.4,5.29081625]
[1757123589231,2.2310036,4312.5,4312.4,6.68681625]
[1757123591936,1.196276,4312.5,4312.4,6.68681625]
[1757123592725,1.196276,4312.5,4312.4,7.38167166]
[1757123595508,1.196276,4312.5,4312.4,23.56567166]
[1757123596944,1.196276,4312.5,4312.4,23.56567166]
[1757123598337,1.196276,4312.5,4312.4,7.38167166]
[1757123599353,0.83376579,4312.5,4312.4,7.38167166]
[1757123602348,0.83376579,4312.5,4312.4,8.35223883]
[1757123605480,0.83376579,4312.5,4312.4,24.53623883]
[1757123606883,0.83376579,4312.5,4312.4,23.56567166]
[1757123607651,0.83376579,4312.5,4312.4,20.79767166]
[1757123609654,0.83376579,4312.5,4312.4,7.38167166]
[1757123615371,0.83376579,4312.5,4312.4,21.86267166]
[1757123615587,0.83376579,4312.5,4312.4,23.56567166]
[1757123617317,0.83376579,4312.5,4312.4,14.40867166]
[1757123617523,0.83376579,4312.5,4312.4,7.38167166]
[1757123625373,0.83376579,4312.5,4312.4,10.14967166]
[1757123625673,0.83376579,4312.5,4312.4,23.56567166]
[1757123628437,0.83376579,4312.5,4312.4,12.08467166]
[1757123630479,0.83376579,4312.5,4312.4,7.38167166]
[1757123635453,0.83376579,4312.5,4312.4,23.56567166]
[1757123637090,0.83376579,4312.5,4312.4,7.38167166]
[1757123645508,0.83376579,4312.5,4312.4,23.56567166]
[1757123646787,0.83376579,4312.5,4312.4,23.25807166]
[1757123647176,1.04024237,4312.5,4312.4,0.96991625]
[1757123647410,1.04024237,4312.5,4312.4,4.81891625]
[1757123652922,1.04024237,4312.5,4312.4,0.96991625]
[1757123652923,1.83224237,4312.5,4312.4,0.96991625]
[1757123653121,1.83224237,4312.5,4312.4,4.81891625]
[1757123653845,5.52730384,4312.5,4312.4,4.81891625]
[1757123655347,11.25210331,4312.5,4312.4,4.81991625]
[1757123655520,11.25210331,4312.5,4312.4,21.00391625]
[1757123655853,5.52730384,4312.5,4312.4,21.00391625]
[1757123656233,11.25210331,4312.5,4312.4,21.00391625]
[1757123656554,5.52730384,4312.5,4312.4,21.00391625]
[1757123658126,5.52730384,4312.5,4312.4,11.84691625]
[1757123658453,5.52730384,4312.5,4312.4,6.52291625]
[1757123660129,5.52730384,4312.5,4312.4,4.81991625]
[1757123660938,5.52730384,4312.5,4312.4,4.47253723]
[1757123661329,5.52730384,4312.5,4312.4,3.86504894]
[1757123661651,5.52730384,4312.5,4312.4,3.85]
[1757123661858,0.9072,4312.4,4312.3,0.36251811]
[1757123662044,1.17155038,4312.4,4312.3,0.36251811]
[1757123662240,1.17155038,4312.4,4312.3,0.01513909]
[1757123662553,1.17155038,4312.4,4312.1,1.96862098]
[1757123662852,4.23257582,4312.4,4312.1,1.96862098]
[1757123663054,1.23257582,4312.4,4312.2,3.251]
[1757123663353,4.71448517,4312.3,4312.2,3.251]
[1757123663929,1.71448517,4312.3,4312.2,3.251]
[1757123665470,1.71448517,4312.3,4312.2,19.44]
[1757123667081,11.73448517,4312.3,4312.2,19.44]
[1757123668267,11.73448517,4312.3,4312.2,16.671]
[1757123670092,11.73448517,4312.3,4312.2,10.28]
[1757123670301,11.73448517,4312.3,4312.2,4.955]
[1757123674003,11.73448517,4312.3,4312.2,3.251]
[1757123675422,11.73448517,4312.3,4312.2,19.441]
[1757123678194,11.73448517,4312.3,4312.2,16.672]
[1757123678615,11.73448517,4312.3,4312.2,17.1029]
[1757123678830,11.73448517,4312.3,4312.2,18.2143]
[1757123680146,11.73448517,4312.3,4312.2,4.7933]
[1757123683257,11.73448517,4312.3,4312.2,4.3624]
[1757123683452,11.73448517,4312.3,4312.2,3.251]
[1757123685475,11.73448517,4312.3,4312.2,19.441]
[1757123685776,11.73448517,4312.3,4312.2,19.9067]
[1757123686893,11.73448517,4312.3,4312.2,20.9815]
[1757123688262,11.73448517,4312.3,4312.2,4.7915]
[1757123688478,11.73448517,4312.3,4312.2,5.0947]
[1757123691275,11.73448517,4312.3,4312.2,4.7915]
[1757123694286,11.73448517,4312.3,4312.2,5.0947]
[1757123695048,11.73548517,4312.3,4312.2,5.0947]
[1757123695459,11.73548517,4312.3,4312.2,21.2847]
[1757123697677,7.813,4312.3,4312.2,18.5157]
[1757123700391,10.813,4312.3,4312.2,7.03]
[1757123700556,10.813,4312.3,4312.2,10.88]
[1757123700883,10.813,4312.3,4312.2,5.554]
[1757123701087,10.813,4312.3,4312.2,6.0197]
[1757123701285,10.813,4312.3,4312.2,7.0945]
[1757123701286,12.71997872,4312.3,4312.2,7.0945]
[1757123702064,12.71997872,4312.3,4312.2,6.6288]
[1757123702391,12.71997872,4312.3,4312.2,7.0945]
[1757123702688,3.9072,4312.2,4312.1,1.97262098]
[1757123702895,3.9072,4312.2,4312.1,5.82262098]
[1757123703062,5.32117715,4312.2,4312.1,5.82262098]
[1757123704958,5.32117715,4312.2,4312.1,7.36312098]
[1757123705195,5.32117715,4312.2,4312.1,7.66632098]
[1757123705390,12.34117715,4312.2,4312.1,16.82632098]
[1757123705592,12.34117715,4312.2,4312.1,23.85632098]
[1757123707009,12.34117715,4312.2,4312.1,21.08732098]
[1757123710625,12.34117715,4312.2,4312.1,7.66632098]
[1757123713403,9.34117715,4312.2,4312.1,7.66632098]
[1757123713941,9.34117715,4312.2,4312.1,7.36312098]
[1757123714827,9.34217715,4312.2,4312.1,7.36312098]
[1757123715450,9.34217715,4312.2,4312.1,23.55312098]
[1757123716482,9.34217715,4312.2,4312.1,23.08742098]
[1757123716778,9.34217715,4312.2,4312.1,23.53032098]
[1757123718682,9.34217715,4312.2,4312.1,14.37032098]
[1757123718889,9.34217715,4312.2,4312.1,9.04432098]
[1757123719787,9.34217715,4312.2,4312.1,8.60142098]
[1757123720677,9.34217715,4312.2,4312.1,6.89742098]
[1757123721184,12.34217715,4312.2,4312.1,1.97262098]
[1757123721388,12.34217715,4312.2,4312.1,5.82162098]
[1757123725524,12.34217715,4312.2,4312.1,22.01162098]
[1757123729300,12.34217715,4312.2,4312.1,12.85162098]
[1757123731361,12.34217715,4312.2,4312.1,5.82162098]
[1757123731926,12.34217715,4312.2,4312.1,6.26452098]
[1757123732860,12.34217715,4312.2,4312.1,7.36262098]
[1757123735469,12.34217715,4312.2,4312.1,23.55362098]
[1757123737574,12.34217715,4312.2,4312.1,20.78462098]
[1757123741285,12.34217715,4312.2,4312.1,7.36262098]
[1757123745525,12.34217715,4312.2,4312.1,23.55362098]
[1757123747236,12.34217715,4312.2,4312.1,14.39262098]
[1757123747416,12.34217715,4312.2,4312.1,9.06662098]
[1757123748230,1.41497715,4312.2,4312.1,7.67272098]
[1757123748408,0.001,4312.6,4312.1,7.67272098]
[1757123748607,2.022,4312.2,4312.1,6.13172098]
[1757123749004,1.23,4312.2,4312.1,6.82674541]
[1757123749211,1.23,4312.2,4312.1,8.24614541]
[1757123749525,2.022,4312.2,4312.1,8.24614541]
[1757123750034,0.75609375,4312.2,4312.1,9.11072066]
[1757123750733,0.75709375,4312.2,4312.1,9.11072066]
[1757123755413,0.75709375,4312.2,4312.1,25.30072066]
[1757123756136,0.75709375,4312.2,4312.1,22.53172066]
[1757123758069,0.75709375,4312.2,4312.1,10.81472066]
[1757123758215,0.75709375,4312.2,4312.1,9.11072066]
[1757123763921,0.75709375,4312.2,4312.1,8.24614541]
[1757123765440,0.75709375,4312.2,4312.1,24.43414541]
[1757123768080,0.75709375,4312.2,4312.1,8.24614541]
[1757123775350,0.75709375,4312.2,4312.1,17.40514541]
[1757123775588,0.75709375,4312.2,4312.1,24.43414541]
[1757123776302,0.75709375,4312.2,4312.1,21.66514541]
[1757123776651,0.75709375,4312.2,4312.1,9.95014541]
[1757123776877,0.75709375,4312.2,4312.1,12.95014541]
[1757123778654,0.75709375,4312.2,4312.1,11.24614541]
[1757123785504,0.75709375,4312.2,4312.1,30.19814541]
[1757123785872,0.75709375,4312.2,4312.1,18.27314541]
[1757123787873,0.75709375,4312.2,4312.1,12.94914541]
[1757123788207,0.66134475,4312.2,4312.1,12.94914541]
[1757123788601,0.66134475,4312.2,4312.1,11.24614541]
[1757123795490,0.66134475,4312.2,4312.1,30.19814541]
[1757123798703,0.66134475,4312.2,4312.1,11.24614541]
[1757123803741,0.66134475,4312.2,4312.1,9.94874541]